{"text_format":"2","workbook":"xlsx","n_sheets":3,"sheets":["invoer","Grafiek frequentie","Legenda"],"not_rendered":{"charts":2,"images":1,"macros":0,"external_links":0,"defined_names":0,"comments":0,"pivot_tables":0},"unopened":[],"bounds":{"document_bytes":16777216,"sheet_cells":100000,"run_cost":"one","rows_first":2000,"rows_last":500,"rows_between":2000,"halvings":0,"cell_chars":16384,"cell_head_chars":4096},"cells_cut":0,"cells_raw":0,"read":"whole","date_system":"1900"}

{"sheet":"invoer","index":0,"n_rows":160,"n_cols":7,"rows_kept":160,"cut":false,"hidden":false,"merged":[]}
[]
[]
[]
[]
[]
[]
["Nummer","Vraag","Frequentie"]
[1,"Door anderen te laten merken dat met jou niet te spotten valt, dwing je respect af.",null,"FREQUENTIE",{"$f":"IF(OR(C8=5,C8=6),\"1\",\"0\")","v":"0"}]
[2,"Ik voel me geliefd en geaccepteerd.",null,"1= Nooit of bijna nooit","0"]
[3,"Ik gun mezelf geen plezier omdat ik het niet verdien.",null,"2= Zelden","0"]
[4,"Ik voel me inadequaat, gebrekkig of waardeloos.",null,"3= Af en toe","0"]
[5,"Ik heb de neiging om mezelf te straffen door mezelf pijn te doen (bijvoorbeeld mezelf snijden).",null,"4= Regelmatig","0"]
[6,"Ik voel me verloren",null,"5= Meestal","0"]
[7,"Ik ben streng voor mezelf.",null,"6= Altijd","0"]
[8,"Ik doe erg mijn best anderen te plezieren om conflicten, confrontatie of afwijzing te vermijden",null,null,"0"]
[9,"Ik kan mezelf niet vergeven.",null,null,"0"]
[10,"Ik doe dingen om in het middelpunt van de belangstelling te staan.",null,null,"0"]
[11,"Ik raak geïrriteerd als mensen niet doen wat ik van hen vraag.",null,null,"0"]
[12,"Ik kan mijn impulsen slecht controleren.",null,null,"0"]
[13,"Als ik een doel niet kan bereiken, raak ik snel gefrustreerd en geef ik het op.",null,null,"0"]
[14,"Ik heb woedeaanvallen en driftbuien",null,null,"0"]
[15,"Ik handel impulsief of ik uit emoties die me in de problemen brengen of die andere mensen kwetsen.",null,null,"0"]
[16,"Het is mijn schuld wanneer er iets ergs gebeurt.",null,null,"0"]
[17,"Ik voel me tevreden en kalm.",null,null,"0"]
[18,"Ik verander mezelf afhankelijk van de mensen bij wie ik ben, zodat ze me aardig zullen vinden of me goedkeuren.",null,null,"0"]
[19,"Ik voel me verbonden met andere mensen.",null,null,"0"]
[20,"Als er problemen zijn, doe ik hard mijn best om ze zelf op te lossen.",null,null,"0"]
[21,"Ik dwing mezelf niet om routinematige of vervelende taken af te maken.",null,null,"0"]
[22,"Als ik niet vecht word ik misbruikt of verwaarloosd.",null,null,"0"]
[23,"Wie zich laat pesten is een mislukkeling.",null,null,"0"]
[24,"Ik val mensen fysiek aan als ik boos op hen ben.",null,null,"0"]
[25,"Als ik me eenmaal boos begin te voelen, houd ik het vaak niet onder controle en verlies ik mijn beheersing.",null,null,"0"]
[26,"Het is voor mij belangrijk nummer één te zijn (bijvoorbeeld de meest populaire, meest succesvolle, meest rijke, meest machtige).",null,null,"0"]
[27,"Ik voel me onverschillig.",null,null,"0"]
[28,"Ik kan problemen rationeel oplossen zonder me door mijn emoties te laten overspoelen.",null,null,"0"]
[29,"Ik neem geen genoegen met het één na beste.",null,"FREQUENTIE","0"]
[30,"Aanval is de beste verdediging.",null,"1= Nooit of bijna nooit","0"]
[31,"Ik voel me kil naar andere mensen toe.",null,"2= Zelden","0"]
[32,"Ik voel me onthecht (geen contact met mezelf, mijn emoties en anderen).",null,"3= Af en toe","0"]
[33,"Ik volg blindelings mijn emoties.",null,"4= Regelmatig","0"]
[34,"Ik voel me wanhopig.",null,"5= Meestal","0"]
[35,"Ik sta het toe dat andere mensen mij bekritiseren of kleineren.",null,"6= Altijd","0"]
[36,"In relaties laat ik de andere persoon de overhand hebben.",null,null,"0"]
[37,"Ik voel me afstandelijk tegenover andere mensen.",null,null,"0"]
[38,"Ik denk niet na over wat ik zeg en breng daarmee mezelf in de problemen of kwets anderen.",null,null,"0"]
[39,"Ik werk of sport intensief om niet te hoeven denken aan vervelende dingen.",null,null,"0"]
[40,"Ik ben boos omdat mensen proberen mijn vrijheid en onafhankelijkheid van me af te pakken.",null,null,"0"]
[41,"Ik voel niks.",null,null,"0"]
[42,"Ik doe wat ik wil, ongeacht de behoeften en gevoelens van andere mensen.",null,null,"0"]
[43,"Ik geef mezelf niet de kans om te ontspannen of plezier te hebben, voordat ik alles heb afgemaakt wat ik moest doen.",null,null,"0"]
[44,"Ik gooi en smijt met dingen als ik boos ben.",null,null,"0"]
[45,"Ik ben woedend op iemand.",null,null,"0"]
[46,"Ik voel dat ik bij andere mensen hoor.",null,null,"0"]
[47,"Ik heb veel opgekropte boosheid die eruit moet.",null,null,"0"]
[48,"Ik voel me eenzaam.",null,null,"0"]
[49,"Ik doe graag iets opwindends of troostends om mijn gevoelens te vermijden (bijvoorbeeld eten, seksuele activiteiten, uitgaan, gokken of shoppen).",null,null,"0"]
[50,"Gelijkwaardigheid bestaat niet, dus kan je maar het beste boven de ander staan.",null,null,"0"]
[51,"In mijn boosheid verlies ik de controle over mezelf en bedreig ik andere mensen.",null,"FREQUENTIE","0"]
[52,"Ik laat andere mensen hun gang gaan, in plaats van mijn eigen behoeften te uiten.",null,"1= Nooit of bijna nooit","0"]
[53,"Wie niet voor me is, is tegen me.",null,"2= Zelden","0"]
[54,"Om minder last te hebben van vervelende gedachten of gevoelens, zorg ik dat ik het altijd druk heb.",null,"3= Af en toe","0"]
[55,"Ik ben een slecht persoon als ik boos word op andere mensen.",null,"4= Regelmatig","0"]
[56,"Ik wil niet betrokken raken bij andere mensen.",null,"5= Meestal","0"]
[57,"Ik voel dat ik genoeg stabiliteit en zekerheid in mijn leven heb",null,"6= Altijd","0"]
[58,"Ik weet wanneer mijn emoties te uiten en wanneer niet.",null,null,"0"]
[59,"Ik ben boos op iemand omdat hij/ zij er niet voor me was of mij verliet.",null,null,"0"]
[60,"Ik voel me niet verbonden met andere mensen.",null,null,"0"]
[61,"Ik kan me er niet toe zetten dingen te doen die ik vervelend vind, ook al weet ik dat het voor mijn eigen bestwil is.",null,null,"0"]
[62,"Ik overtreed regels en heb er later spijt van.",null,null,"0"]
[63,"Ik voel me vernederd",null,null,"0"]
[64,"Ik vertrouw de meeste andere mensen.",null,null,"0"]
[65,"Ik doe, en denk daarna pas.",null,null,{"$f":"IF(OR(C72=5,C72=6),\"1\",\"0\")","v":"0"}]
[66,"Ik raak makkelijk verveeld en verlies snel interesse in dingen.",null,null,"0"]
[67,"Ook als ik mensen om me heen heb, voel ik me eenzaam.",null,null,"0"]
[68,"Omdat ik slecht ben sta ik het mezelf niet toe om plezierige dingen te doen die andere mensen wel doen.",null,null,"0"]
[69,"Ik kom op voor wat ik wil, zonder daarin te overdrijven.",null,null,"0"]
[70,"Ik vind mezelf speciaal en beter dan de meeste andere mensen.",null,null,"0"]
[71,"Ik geef nergens om; niets is belangrijk voor me.",null,null,"0"]
[72,"Het maakt me boos wanneer iemand me vertelt hoe ik me zou moeten voelen of gedragen.",null,null,"0"]
[73,"Als je anderen niet overheerst, word je overheerst.",null,null,"0"]
[74,"Ik zeg wat ik voel of doe dingen impulsief, zonder over de gevolgen na te denken.",null,"FREQUENTIE","0"]
[75,"Ik zou mensen een standje willen geven voor de manier waarop ze mij behandeld hebben.",null,"1= Nooit of bijna nooit","0"]
[76,"Ik ben in staat om voor mezelf te zorgen.",null,"2= Zelden","0"]
[77,"Ik ben tamelijk kritisch tegenover andere mensen.",null,"3= Af en toe","0"]
[78,"Ik sta onder een constante druk om te presteren en dingen te bereiken.",null,"4= Regelmatig","0"]
[79,"Ik probeer geen fouten te maken, anders ga ik mezelf naar beneden halen.",null,"5= Meestal","0"]
[80,"Ik verdien het om gestraft te worden.",null,"6= Altijd","0"]
[81,"Ik kan leren, groeien en veranderen.",null,null,"0"]
[82,"Ik wil mezelf afleiden van gedachten en gevoelens die mij van streek maken.",null,null,"0"]
[83,"Ik ben boos op mezelf.",null,null,"0"]
[84,"Ik voel me vlak.",null,null,"0"]
[85,"Ik moet de beste zijn in wat ik doe.",null,null,"0"]
[86,"Ik offer plezier, gezondheid of geluk op om aan mijn eigen eisen te voldoen.",null,null,"0"]
[87,"Ik ben veeleisend tegenover andere mensen.",null,null,"0"]
[88,"Als ik boos ben, kan het zo uit de hand lopen dat er gewonden vallen.",null,null,"0"]
[89,"Ik ben onaantastbaar.",null,null,"0"]
[90,"Ik ben een slecht persoon.",null,null,"0"]
[91,"Ik voel me veilig.",null,null,"0"]
[92,"Ik voel me gehoord, begrepen en gesteund.",null,null,"0"]
[93,"Het is voor mij onmogelijk mijn impulsen te controleren.",null,null,"0"]
[94,"Ik maak dingen kapot als ik boos ben.",null,null,"0"]
[95,"Door anderen te overheersen, kan je niets gebeuren.",null,null,"0"]
[96,"Ik gedraag me op een passieve manier, zelfs als ik het ergens niet mee eens ben.",null,null,"0"]
[97,"Mijn boosheid loopt uit de hand.",null,null,"0"]
[98,"Ik pest anderen.",null,null,"0"]
[99,"Ik zou iemand pijn willen doen voor wat hij/ zij me heeft aangedaan.",null,null,"0"]
[100,"Ik weet dat er een ‘goede’ en een ‘ slechte’ manier is om dingen te doen; ik doe hard mijn best om dingen op een goede manier te doen, anders bekritiseer ik mezelf.",null,"FREQUENTIE","0"]
[101,"Ik voel me vaak alleen op de wereld.",null,"1= Nooit of bijna nooit","0"]
[102,"Ik voel me zwak en hulpeloos.",null,"2= Zelden","0"]
[103,"Ik ben lui.",null,"3= Af en toe","0"]
[104,"Het is verstandig om alles te accepteren van mensen die belangrijk voor me zijn.",null,"4= Regelmatig","0"]
[105,"Ik ben bedrogen of oneerlijk behandeld.",null,"5= Meestal","0"]
[106,"Ik voel me buitengesloten.",null,"6= Altijd","0"]
[107,"Ik kleineer anderen.",null,null,"0"]
[108,"Ik voel me optimistisch.",null,null,"0"]
[109,"Ik heb het gevoel dat ik mezelf niet aan dezelfde regels hoef te houden als andere mensen.",null,null,"0"]
[110,"Ik dwing mezelf om meer verantwoordelijk te zijn dan de meeste andere mensen.",null,null,"0"]
[111,"Ik kan voor mezelf opkomen wanneer ik vind dat ik oneerlijk bekritiseerd, uitgebuit of misbruikt word.  ",null,null,"0"]
[112,"Ik verdien geen medelijden wanneer mij iets ergs overkomt.",null,null,"0"]
[113,"Ik heb het gevoel dat niemand van me houdt.",null,null,"0"]
[114,"Ik voel dat ik van nature een goed persoon ben.",null,null,"0"]
[115,"Als het nodig is maak ik saaie en routinematige taken af zodat ik dingen kan bereiken die ik waardeer.",null,null,"0"]
[116,"Ik voel me spontaan en speels.",null,null,"0"]
[117,"Ik kan zo woedend zijn dat ik in staat ben iemand te vermoorden.",null,null,"0"]
[118,"Ik heb een goed beeld van wie ik ben en wat ik nodig heb om mezelf gelukkig te maken.",null,null,"0"]
[]
[null,"EINDE VAN DE VRAGENLIJST. DANK U VOOR UW MEDEWERKING"]
{"$rows_empty":13}
[null,"Schema Mode Inventory (version 1)"]
["Naam",null,null,"Therapeut:"]
["Datum"]
[null,null,"Gemiddelde score modus","Gemiddelde modus","Nummers 5 en 6",null,"Percentage van"]
["Nummer","Modus",null,"frequentie score","frequentie telling",null,"5's & 6's:"]
[1,"kk",{"$f":"AVERAGE(C11,C13,C41,C55,C70,C74,C108,C109,C113,C120)","v":{"$error":"#DIV/0!"}},{"$f":"(C146-1)/5","v":{"$error":"#DIV/0!"}},{"$f":"SUM(E11+E13+E41+E55+E70+E74+E108+E109+E113+E120)","v":0},"van de 10",{"$f":"E146/10","v":0}]
[2,"wk",{"$f":"AVERAGE(C29,C47,C52,C54,C60,C66,C79,C82,C106,C112)","v":{"$error":"#DIV/0!"}},{"$error":"#DIV/0!"},{"$f":"SUM(E29+E47+E52+E54+E60+E66+E79+E82+E106+E112)","v":0},"van de 10",{"$f":"E147/10","v":0}]
[3,"rk",{"$f":"AVERAGE(C21,C31,C32,C51,C58,C95,C101,C104,C124)","v":{"$error":"#DIV/0!"}},{"$error":"#DIV/0!"},{"$f":"SUM(E21+E31+E32+E51+E58+E95+E101+E104+E124)","v":0},"van de 9",{"$f":"E148/9","v":0}]
[4,"ik",{"$f":"AVERAGE(C19,C22,C40,C45,C69,C72,C81,C100)","v":{"$error":"#DIV/0!"}},{"$error":"#DIV/0!"},{"$f":"SUM(E19+E22+E40+E45+E69+E72+E81+E100)","v":0},"van de 8",{"$f":"E149/8","v":0}]
[5,"ok",{"$f":"AVERAGE(C20,C28,C68,C73,C110)","v":{"$error":"#DIV/0!"}},{"$error":"#DIV/0!"},{"$f":"SUM(E20+E28+E68+E73+E110)","v":0},"van de 5",{"$f":"E150/5","v":0}]
[6,"bk",{"$f":"AVERAGE(C9,C24,C26,C53,C64,C71,C98,C99,C115,C123)","v":{"$error":"#DIV/0!"}},{"$error":"#DIV/0!"},{"$f":"SUM(E9+E24+E26+E53+E64+E71+E98+E99+E115+E123)","v":0},"van de 10",{"$f":"E151/10","v":0}]
[7,"wi",{"$f":"AVERAGE(C15,C25,C42,C43,C59,C103,C111)","v":{"$error":"#DIV/0!"}},{"$error":"#DIV/0!"},{"$f":"SUM(E15+E25+E42+E43+E59+E103+E111)","v":0},"van de 7",{"$f":"E152/7","v":0}]
[8,"ob",{"$f":"AVERAGE(C34,C38,C39,C44,C48,C63,C67,C78,C91)","v":{"$error":"#DIV/0!"}},{"$error":"#DIV/0!"},{"$f":"SUM(E34+E38+E39+E44+E48+E63+E67+E78+E91)","v":0},"van de 9",{"$f":"E153/9","v":0}]
[9,"oz",{"$f":"AVERAGE(C46,C56,C61,C89)","v":{"$error":"#DIV/0!"}},{"$error":"#DIV/0!"},{"$f":"SUM(E46+E56+E61+E89)","v":0},"van de 4",{"$f":"E154/4","v":0}]
[10,"zh",{"$f":"AVERAGE(C17,C18,C33,C36,C49,C77,C84,C92,C94,C116)","v":{"$error":"#DIV/0!"}},{"$error":"#DIV/0!"},{"$f":"SUM(E17+E18+E33+E36+E49+E77+E84+E92+E94+E116)","v":0},"van de 10",{"$f":"E155/10","v":0}]
[11,"pa",{"$f":"AVERAGE(C8,C30,C37,C57,C80,C96,C102,C105,C114)","v":{"$error":"#DIV/0!"}},{"$error":"#DIV/0!"},{"$f":"SUM(E8+E30+E37+E57+E80+E96+E102+E105+E114)","v":0},"van de 9",{"$f":"E156/9","v":0}]
[12,"so",{"$f":"AVERAGE(C10,C12,C16,C23,C62,C75,C87,C90,C97,C119)","v":{"$error":"#DIV/0!"}},{"$error":"#DIV/0!"},{"$f":"SUM(E10+E12+E16+E23+E62+E75+E87+E90+E97+E119)","v":0},"van de 10",{"$f":"E157/10","v":0}]
[13,"vo",{"$f":"AVERAGE(C14,C50,C85,C86,C93,C107,C117)","v":{"$error":"#DIV/0!"}},{"$error":"#DIV/0!"},{"$f":"SUM(E14+E50+E85+E86+E93+E107+E117)","v":0},"van de 7",{"$f":"E158/7","v":0}]
[14,"gv",{"$f":"AVERAGE(C27,C35,C65,C76,C83,C88,C118,C121,C122,C125)","v":{"$error":"#DIV/0!"}},{"$error":"#DIV/0!"},{"$f":"SUM(E27+E35+E65+E76+E83+E88+E118+E121+E122+E125)","v":0},"van de 10",{"$f":"E159/10","v":0}]
[null,"Totaal",null,null,{"$f":"SUM(E146+E147+E148+E149+E150+E151+E152+E153+E154+E155+E156+E157+E158+E159)","v":0},"van de 118",{"$f":"E160/118","v":0}]

{"sheet":"Grafiek frequentie","index":1,"n_rows":0,"n_cols":0,"rows_kept":0,"cut":false,"hidden":false,"merged":[]}

{"sheet":"Legenda","index":2,"n_rows":14,"n_cols":2,"rows_kept":14,"cut":false,"hidden":false,"merged":[]}
["Kwetsbare kind                          ","(kk)"]
["Woedende kind                               ","(wk)   "]
["Razende kind                            ","(rk)"]
["Impulsieve kind                          ","(ik)"]
["Ongedisciplineerde kind             ","(ok)"]
["Blije kind                                   ","(bk)"]
["Willoze inschikkelijke                ","(wi)"]
["Onthechte beschermer               ","(ob) "]
["Onthechte zelfsusser                 ","(oz)"]
["Zelfverheerlijker                          ","(zh)"]
["Pest- en aanval                          ","(pa)"]
["Straffende ouder                         ","(so)"]
["Veeleisende ouder                      ","(vo)"]
["Gezonde volwassene                  ","(gv)"]